[Event "*** Titled Tuesday Blitz AM"]
[Site "Chess.com"]
[Date "2020.01.07"]
[Round "6"]
[White "Batica1984"]
[Black "Firouzja2003"]
[Result "0-1"]
[WhiteElo "2784"]
[BlackElo "3078"]
[TimeControl "180+2"]
[EndTime "10:17:54 PST"]
[Termination "Firouzja2003 won by resignation"]

1. e4 {[%clk 0:03:01.9]} 1... e5 {[%clk 0:03:00.5]} 2. Nf3 {[%clk 0:03:02.6]}
2... Nc6 {[%clk 0:03:00.1]} 3. d4 {[%clk 0:03:02.7]} 3... exd4 {[%clk 0:02:59]}
4. Nxd4 {[%clk 0:03:04.6]} 4... Qf6 {[%clk 0:02:59.9]} 5. Nb5 {[%clk 0:02:47.1]}
5... Bc5 {[%clk 0:02:59.9]} 6. Qe2 {[%clk 0:02:46]} 6... Bb6 {[%clk 0:02:58.3]}
7. N1c3 {[%clk 0:02:47]} 7... Nge7 {[%clk 0:02:58.8]} 8. Be3 {[%clk 0:02:47.2]}
8... O-O {[%clk 0:02:58.7]} 9. Bxb6 {[%clk 0:02:43.7]} 9... cxb6 {[%clk
0:02:58.7]} 10. O-O-O {[%clk 0:02:41.2]} 10... a6 {[%clk 0:02:59.6]} 11. Nd6
{[%clk 0:02:28.8]} 11... b5 {[%clk 0:03:00.2]} 12. Qf3 {[%clk 0:02:17.4]} 12...
Qg5+ {[%clk 0:02:49.1]} 13. Kb1 {[%clk 0:02:14.3]} 13... b4 {[%clk 0:02:50.7]}
14. Nd5 {[%clk 0:02:13.3]} 14... Nxd5 {[%clk 0:02:44.6]} 15. Rxd5 {[%clk
0:02:13.1]} 15... Qe7 {[%clk 0:02:44.8]} 16. Bc4 {[%clk 0:02:04.6]} 16... b5
{[%clk 0:02:30.7]} 17. Bb3 {[%clk 0:02:05.2]} 17... Na5 {[%clk 0:02:27.3]} 18.
Rhd1 {[%clk 0:02:01.2]} 18... Nxb3 {[%clk 0:02:26.9]} 19. axb3 {[%clk
0:02:01.7]} 19... a5 {[%clk 0:02:20]} 20. Rxb5 {[%clk 0:01:57.3]} 20... Ba6
{[%clk 0:02:19.8]} 21. Rbd5 {[%clk 0:01:57.3]} 21... Qe6 {[%clk 0:02:16.2]} 22.
Qe3 {[%clk 0:01:51.8]} 22... Bc8 {[%clk 0:02:03.2]} 23. Qd4 {[%clk 0:01:52.2]}
23... a4 {[%clk 0:01:50.2]} 24. Qxb4 {[%clk 0:01:51.2]} 24... axb3 {[%clk
0:01:48.3]} 25. Qxb3 {[%clk 0:01:52.3]} 25... Ba6 {[%clk 0:01:48.9]} 26. Qc3
{[%clk 0:01:48.6]} 26... f6 {[%clk 0:01:40.2]} 27. R1d2 {[%clk 0:01:47.8]} 27...
Rfb8 {[%clk 0:01:36.5]} 28. f3 {[%clk 0:01:48.4]} 28... Bb7 {[%clk 0:01:34.6]}
29. Nxb7 {[%clk 0:01:29.1]} 29... Rxb7 {[%clk 0:01:36.5]} 30. b3 {[%clk
0:01:29.7]} 30... Rba7 {[%clk 0:01:26.4]} 31. Qd4 {[%clk 0:01:29.5]} 31... Qa6
{[%clk 0:01:18.6]} 32. Rd6 {[%clk 0:01:12.6]} 32... Qf1+ {[%clk 0:01:13.3]} 33.
Rd1 {[%clk 0:01:12.7]} 33... Qxg2 {[%clk 0:01:13.5]} 34. Rxd7 {[%clk 0:00:58.5]}
34... Ra1+ {[%clk 0:01:14.3]} 35. Qxa1 {[%clk 0:00:57.7]} 35... Rxa1+ {[%clk
0:01:16.2]} 36. Kxa1 {[%clk 0:00:59]} 36... Qxc2 {[%clk 0:01:17.3]} 37. R1d3
{[%clk 0:00:58]} 37... Qxh2 {[%clk 0:01:15.8]} 38. b4 {[%clk 0:00:56.9]} 38...
h5 {[%clk 0:01:16.8]} 39. b5 {[%clk 0:00:57.8]} 39... Qe5+ {[%clk 0:01:17.4]}
40. Ka2 {[%clk 0:00:56.9]} 40... Qxb5 {[%clk 0:01:18.9]} 41. R7d5 {[%clk
0:00:52.9]} 41... Qc4+ {[%clk 0:01:18.8]} 42. Kb2 {[%clk 0:00:54]} 42... h4
{[%clk 0:01:20.4]} 43. Rd2 {[%clk 0:00:48.6]} 43... Qf1 {[%clk 0:01:18.2]} 44.
R5d3 {[%clk 0:00:47.1]} 44... h3 {[%clk 0:01:18.4]} 0-1

[Event "*** Titled Tuesday Blitz AM"]
[Site "Chess.com"]
[Date "2020.01.07"]
[Round "6"]
[White "aa175"]
[Black "wannabe2700"]
[Result "0-1"]
[WhiteElo "2245"]
[BlackElo "2763"]
[TimeControl "180+2"]
[EndTime "10:18:04 PST"]
[Termination "wannabe2700 won by resignation"]

1. d4 {[%clk 0:03:01.9]} 1... d5 {[%clk 0:02:59.7]} 2. Bf4 {[%clk 0:03:02.5]}
2... c5 {[%clk 0:02:58.4]} 3. e3 {[%clk 0:03:00.8]} 3... Nf6 {[%clk 0:02:59.1]}
4. Nf3 {[%clk 0:02:58]} 4... e6 {[%clk 0:03:00]} 5. Nbd2 {[%clk 0:02:55.5]} 5...
Bd6 {[%clk 0:02:58.8]} 6. Bg3 {[%clk 0:02:52.6]} 6... O-O {[%clk 0:02:59.2]} 7.
c3 {[%clk 0:02:51.1]} 7... Qc7 {[%clk 0:02:57.6]} 8. Bd3 {[%clk 0:02:50.2]} 8...
Nbd7 {[%clk 0:02:58.7]} 9. O-O {[%clk 0:02:38]} 9... Bxg3 {[%clk 0:02:58.6]} 10.
hxg3 {[%clk 0:02:38.8]} 10... e5 {[%clk 0:03:00.5]} 11. dxe5 {[%clk 0:02:40.5]}
11... Nxe5 {[%clk 0:03:02.1]} 12. Nxe5 {[%clk 0:02:42.3]} 12... Qxe5 {[%clk
0:03:04]} 13. Nf3 {[%clk 0:02:42.7]} 13... Qe7 {[%clk 0:03:04.7]} 14. Qa4 {[%clk
0:02:42.3]} 14... Bg4 {[%clk 0:03:02.2]} 15. Qf4 {[%clk 0:02:27.1]} 15... h6
{[%clk 0:03:01.6]} 16. Qe5 {[%clk 0:02:16.5]} 16... Qd8 {[%clk 0:02:53.5]} 17.
Bf5 {[%clk 0:02:08.7]} 17... Re8 {[%clk 0:02:51.8]} 18. Qf4 {[%clk 0:02:09.8]}
18... g5 {[%clk 0:02:47.1]} 19. Nxg5 {[%clk 0:01:52.6]} 19... Bxf5 {[%clk
0:02:47.8]} 20. Nxf7 {[%clk 0:01:07.9]} 20... Kxf7 {[%clk 0:02:48.1]} 21. Qxf5
{[%clk 0:01:09.2]} 21... Qd7 {[%clk 0:02:43.1]} 22. Qf4 {[%clk 0:01:05.4]} 22...
Kg6 {[%clk 0:02:32.6]} 23. Rad1 {[%clk 0:00:51]} 23... Re4 {[%clk 0:02:31.8]}
24. Qf3 {[%clk 0:00:49.3]} 24... Qg4 {[%clk 0:02:31.6]} 25. Rd2 {[%clk
0:00:26.3]} 25... a5 {[%clk 0:02:30.5]} 26. Rfd1 {[%clk 0:00:25.8]} 26... a4
{[%clk 0:02:29.9]} 27. Kf1 {[%clk 0:00:19]} 27... Rc4 {[%clk 0:02:21.4]} 28. a3
{[%clk 0:00:07.6]} 28... Ra6 {[%clk 0:02:20.5]} 29. Ke2 {[%clk 0:00:04.7]} 29...
b5 {[%clk 0:02:17.1]} 30. Rh1 {[%clk 0:00:03]} 30... Rb6 {[%clk 0:02:12.1]} 31.
Qxg4+ {[%clk 0:00:03.7]} 31... Rxg4 {[%clk 0:02:12.8]} 32. Kf3 {[%clk
0:00:04.4]} 32... h5 {[%clk 0:02:08.8]} 33. Rhd1 {[%clk 0:00:03.5]} 33... b4
{[%clk 0:02:05.7]} 34. axb4 {[%clk 0:00:03.4]} 34... cxb4 {[%clk 0:02:07.6]} 35.
Rd4 {[%clk 0:00:03.5]} 35... a3 {[%clk 0:01:58]} 36. bxa3 {[%clk 0:00:02.9]}
36... bxa3 {[%clk 0:01:55.8]} 37. Ra1 {[%clk 0:00:03.3]} 37... Rb3 {[%clk
0:01:55.7]} 38. Rd3 {[%clk 0:00:03]} 38... Rc4 {[%clk 0:01:56.2]} 39. Ke2 {[%clk
0:00:02.5]} 39... Ne4 {[%clk 0:01:56.9]} 40. f3 {[%clk 0:00:02.2]} 40... Nxc3+
{[%clk 0:01:50.4]} 41. Kf1 {[%clk 0:00:02.7]} 41... a2 {[%clk 0:01:51.1]} 42.
Kf2 {[%clk 0:00:02.1]} 42... Rb1 {[%clk 0:01:49.7]} 43. Rxb1 {[%clk 0:00:02.3]}
43... axb1=Q {[%clk 0:01:50.2]} 44. e4 {[%clk 0:00:02.7]} 44... Qxd3 {[%clk
0:01:45.5]} 0-1

[Event "*** Titled Tuesday Blitz AM"]
[Site "Chess.com"]
[Date "2020.01.07"]
[Round "6"]
[White "Me_ch_an"]
[Black "2L8IWUN"]
[Result "1-0"]
[WhiteElo "2342"]
[BlackElo "2126"]
[TimeControl "180+2"]
[EndTime "10:18:08 PST"]
[Termination "Me_ch_an won by resignation"]

1. e4 {[%clk 0:03:01.9]} 1... c5 {[%clk 0:02:59.6]} 2. Nc3 {[%clk 0:03:02.4]}
2... Nc6 {[%clk 0:02:58.8]} 3. g3 {[%clk 0:03:04.3]} 3... g6 {[%clk 0:02:57.8]}
4. d4 {[%clk 0:03:05.4]} 4... Nxd4 {[%clk 0:02:54.3]} 5. Bg2 {[%clk 0:02:10]}
5... Bg7 {[%clk 0:02:53.8]} 6. Be3 {[%clk 0:02:11.9]} 6... d6 {[%clk 0:02:53.8]}
7. Qd2 {[%clk 0:02:12.3]} 7... e6 {[%clk 0:02:50]} 8. Rc1 {[%clk 0:02:09.7]}
8... Ne7 {[%clk 0:02:50.5]} 9. Bh6 {[%clk 0:02:10.6]} 9... Bf6 {[%clk
0:02:18.2]} 10. h4 {[%clk 0:02:10.5]} 10... Nec6 {[%clk 0:02:17.9]} 11. Nge2
{[%clk 0:02:09.7]} 11... Nxe2 {[%clk 0:02:16.9]} 12. Qxe2 {[%clk 0:02:11]} 12...
Nd4 {[%clk 0:02:15.5]} 13. Qd2 {[%clk 0:02:12.2]} 13... Bd7 {[%clk 0:02:08.1]}
14. O-O {[%clk 0:02:12.8]} 14... Bc6 {[%clk 0:02:02.3]} 15. Rfe1 {[%clk
0:02:12.8]} 15... Qe7 {[%clk 0:01:56.3]} 16. Nd1 {[%clk 0:02:12.8]} 16... O-O-O
{[%clk 0:01:51.6]} 17. c3 {[%clk 0:02:13.9]} 17... Nb5 {[%clk 0:01:51.4]} 18. f4
{[%clk 0:02:08.5]} 18... Kb8 {[%clk 0:01:43.8]} 19. Qe2 {[%clk 0:02:07.7]} 19...
Rhg8 {[%clk 0:01:40.3]} 20. e5 {[%clk 0:02:04.6]} 20... dxe5 {[%clk 0:01:38.9]}
21. fxe5 {[%clk 0:02:02.4]} 21... Bg7 {[%clk 0:01:36.8]} 22. Bg5 {[%clk
0:02:02.6]} 22... f6 {[%clk 0:01:36]} 23. Bxc6 {[%clk 0:01:59.5]} 23... bxc6
{[%clk 0:01:34.5]} 24. exf6 {[%clk 0:01:59.2]} 24... Bxf6 {[%clk 0:01:36.4]} 25.
Bf4+ {[%clk 0:01:40.5]} 25... e5 {[%clk 0:01:29.6]} 26. Be3 {[%clk 0:01:40.8]}
26... h5 {[%clk 0:01:22.1]} 27. Qc4 {[%clk 0:01:35.7]} 27... g5 {[%clk
0:01:18.9]} 28. Bxc5 {[%clk 0:01:21.5]} 28... Qd7 {[%clk 0:01:18.1]} 29. Kh2
{[%clk 0:00:40.1]} 29... gxh4 {[%clk 0:01:12]} 30. gxh4 {[%clk 0:00:41.3]} 30...
Qd2+ {[%clk 0:01:02.9]} 31. Nf2 {[%clk 0:00:35.8]} 31... Rd4 {[%clk 0:00:53.8]}
32. Qxg8+ {[%clk 0:00:35.6]} 32... Kb7 {[%clk 0:00:49.6]} 33. Bxd4 {[%clk
0:00:29.6]} 33... Nxd4 {[%clk 0:00:46.4]} 34. cxd4 {[%clk 0:00:28.3]} 34...
Qxf2+ {[%clk 0:00:44.8]} 35. Qg2 {[%clk 0:00:27.5]} 35... Qxh4+ {[%clk
0:00:44.4]} 36. Kg1 {[%clk 0:00:28.4]} 1-0

[Event "*** Titled Tuesday Blitz AM"]
[Site "Chess.com"]
[Date "2020.01.07"]
[Round "6"]
[White "enzovsky"]
[Black "boasovietica"]
[Result "0-1"]
[WhiteElo "2216"]
[BlackElo "2442"]
[TimeControl "180+2"]
[EndTime "10:18:12 PST"]
[Termination "boasovietica won by resignation"]

1. e4 {[%clk 0:03:01.9]} 1... e5 {[%clk 0:02:56.9]} 2. Nf3 {[%clk 0:02:59.6]}
2... Nc6 {[%clk 0:02:58.1]} 3. d4 {[%clk 0:03:00.2]} 3... exd4 {[%clk
0:02:58.9]} 4. Nxd4 {[%clk 0:03:02.1]} 4... Bb4+ {[%clk 0:03:00]} 5. c3 {[%clk
0:03:01.8]} 5... Bc5 {[%clk 0:03:00.5]} 6. Be3 {[%clk 0:03:02]} 6... Bb6 {[%clk
0:03:01]} 7. Nf5 {[%clk 0:02:55.2]} 7... g6 {[%clk 0:02:59.1]} 8. Bxb6 {[%clk
0:02:51.9]} 8... axb6 {[%clk 0:03:01]} 9. Ne3 {[%clk 0:02:53.6]} 9... Nf6 {[%clk
0:03:01.4]} 10. f3 {[%clk 0:02:52.9]} 10... O-O {[%clk 0:03:00.6]} 11. Be2
{[%clk 0:02:45.1]} 11... Nh5 {[%clk 0:02:59.8]} 12. g3 {[%clk 0:02:39.9]} 12...
d6 {[%clk 0:02:56.6]} 13. O-O {[%clk 0:02:39.7]} 13... Be6 {[%clk 0:02:54.7]}
14. c4 {[%clk 0:02:35.7]} 14... f5 {[%clk 0:02:45.6]} 15. Nc3 {[%clk 0:02:30.9]}
15... f4 {[%clk 0:02:43.4]} 16. gxf4 {[%clk 0:02:31.2]} 16... Nxf4 {[%clk
0:02:42.8]} 17. Ned5 {[%clk 0:02:31.8]} 17... Qg5+ {[%clk 0:02:40.2]} 18. Kf2
{[%clk 0:02:31.3]} 18... Qh4+ {[%clk 0:02:16.4]} 19. Ke3 {[%clk 0:02:26]} 19...
Ne5 {[%clk 0:02:16.1]} 20. b3 {[%clk 0:02:11.3]} 20... Qh6 {[%clk 0:02:00.9]}
21. Nxf4 {[%clk 0:01:40.1]} 21... Qxf4+ {[%clk 0:02:00.8]} 22. Kf2 {[%clk
0:01:41.4]} 22... Ng4+ {[%clk 0:01:55.5]} 23. Ke1 {[%clk 0:01:35.2]} 23... Ne3
{[%clk 0:01:54.8]} 24. Qd2 {[%clk 0:01:35.9]} 24... Qh4+ {[%clk 0:01:40.9]} 25.
Rf2 {[%clk 0:01:35.2]} 25... Ng4 {[%clk 0:01:42.3]} 26. Bd1 {[%clk 0:01:21.2]}
26... Nxf2 {[%clk 0:01:34.4]} 27. Qxf2 {[%clk 0:01:23.1]} 27... Qf6 {[%clk
0:01:23.7]} 28. Kd2 {[%clk 0:01:20.4]} 28... Qe5 {[%clk 0:01:19.9]} 29. Be2
{[%clk 0:01:18.8]} 29... Rf4 {[%clk 0:01:14.8]} 30. Rg1 {[%clk 0:01:10.8]} 30...
c6 {[%clk 0:01:05.1]} 31. Kc2 {[%clk 0:01:09.2]} 31... b5 {[%clk 0:00:51.6]} 32.
cxb5 {[%clk 0:01:05.1]} 32... cxb5 {[%clk 0:00:52.7]} 33. Bxb5 {[%clk
0:01:05.7]} 33... Rc8 {[%clk 0:00:53.1]} 34. Qe3 {[%clk 0:00:58.2]} 34... Rh4
{[%clk 0:00:51.6]} 35. Rg2 {[%clk 0:00:49.6]} 35... Qxb5 {[%clk 0:00:49]} 36.
Qg5 {[%clk 0:00:29]} 36... Qxg5 {[%clk 0:00:45.4]} 0-1

[Event "*** Titled Tuesday Blitz AM"]
[Site "Chess.com"]
[Date "2020.01.07"]
[Round "6"]
[White "Colombiano07"]
[Black "Oligan22"]
[Result "0-1"]
[WhiteElo "2170"]
[BlackElo "2470"]
[TimeControl "180+2"]
[EndTime "10:18:12 PST"]
[Termination "Oligan22 won by resignation"]

1. Nf3 {[%clk 0:03:01.9]} 1... d5 {[%clk 0:03:00.5]} 2. b3 {[%clk 0:03:02]} 2...
Bg4 {[%clk 0:02:59.1]} 3. e3 {[%clk 0:03:02.6]} 3... c6 {[%clk 0:02:58.6]} 4.
Bb2 {[%clk 0:03:01.8]} 4... Nd7 {[%clk 0:02:58]} 5. Be2 {[%clk 0:03:02.9]} 5...
Ngf6 {[%clk 0:02:53.6]} 6. O-O {[%clk 0:03:03.7]} 6... e6 {[%clk 0:02:51.8]} 7.
c4 {[%clk 0:03:04.9]} 7... Bd6 {[%clk 0:02:49.8]} 8. d3 {[%clk 0:02:51.8]} 8...
O-O {[%clk 0:02:49.4]} 9. Nbd2 {[%clk 0:02:52.3]} 9... b5 {[%clk 0:02:43.8]} 10.
e4 {[%clk 0:02:48.3]} 10... bxc4 {[%clk 0:02:34]} 11. bxc4 {[%clk 0:02:19.4]}
11... Rb8 {[%clk 0:02:28.5]} 12. Rb1 {[%clk 0:02:16]} 12... Qc7 {[%clk 0:02:26]}
13. h3 {[%clk 0:02:14.9]} 13... Bh5 {[%clk 0:02:25.2]} 14. Re1 {[%clk
0:02:04.1]} 14... Bb4 {[%clk 0:02:11.7]} 15. Qc1 {[%clk 0:01:53.5]} 15... Rfc8
{[%clk 0:02:06.9]} 16. Bc3 {[%clk 0:01:43.8]} 16... c5 {[%clk 0:01:43.5]} 17.
cxd5 {[%clk 0:01:40.2]} 17... Bxc3 {[%clk 0:01:42.7]} 18. Qxc3 {[%clk
0:01:39.3]} 18... exd5 {[%clk 0:01:44]} 19. Rxb8 {[%clk 0:01:27.1]} 19... Rxb8
{[%clk 0:01:25]} 20. e5 {[%clk 0:01:27.3]} 20... Ne8 {[%clk 0:01:23.6]} 21. d4
{[%clk 0:01:25]} 21... c4 {[%clk 0:01:21.6]} 22. Nf1 {[%clk 0:01:14.1]} 22...
Bg6 {[%clk 0:01:13.3]} 23. Ne3 {[%clk 0:00:59.9]} 23... Qb7 {[%clk 0:01:12.9]}
24. Nh4 {[%clk 0:00:54.5]} 24... Nc7 {[%clk 0:01:09.1]} 25. Bf3 {[%clk
0:00:50.8]} 25... Bd3 {[%clk 0:01:04.2]} 26. Nhf5 {[%clk 0:00:48.6]} 26... Nb6
{[%clk 0:01:00.6]} 27. Be2 {[%clk 0:00:45.4]} 27... Na4 {[%clk 0:00:52]} 28. Qa5
{[%clk 0:00:42.9]} 28... Nb2 {[%clk 0:00:41]} 29. Nxd5 {[%clk 0:00:22.7]} 29...
Nxd5 {[%clk 0:00:30.1]} 30. Bxd3 {[%clk 0:00:23.2]} 30... Nxd3 {[%clk
0:00:29.7]} 0-1

[Event "*** Titled Tuesday Blitz AM"]
[Site "Chess.com"]
[Date "2020.01.07"]
[Round "6"]
[White "MITerryble"]
[Black "GMHess"]
[Result "1-0"]
[WhiteElo "2947"]
[BlackElo "2729"]
[TimeControl "180+2"]
[EndTime "10:18:13 PST"]
[Termination "MITerryble won by resignation"]

1. d4 {[%clk 0:03:01.9]} 1... d6 {[%clk 0:02:57.9]} 2. Nf3 {[%clk 0:03:02.1]}
2... g6 {[%clk 0:02:51.7]} 3. e4 {[%clk 0:03:02.4]} 3... Bg7 {[%clk 0:02:53.6]}
4. Bc4 {[%clk 0:03:03.2]} 4... c6 {[%clk 0:02:54.3]} 5. O-O {[%clk 0:03:03.6]}
5... d5 {[%clk 0:02:55.2]} 6. exd5 {[%clk 0:03:01.8]} 6... cxd5 {[%clk
0:02:57.1]} 7. Bb5+ {[%clk 0:03:03.3]} 7... Bd7 {[%clk 0:02:57.7]} 8. Qe2 {[%clk
0:03:02.4]} 8... Bxb5 {[%clk 0:02:57.2]} 9. Qxb5+ {[%clk 0:03:03.6]} 9... Qd7
{[%clk 0:02:58.9]} 10. a4 {[%clk 0:03:04.9]} 10... a6 {[%clk 0:02:55]} 11. Qd3
{[%clk 0:02:51]} 11... Nc6 {[%clk 0:02:54.6]} 12. c3 {[%clk 0:02:46.1]} 12...
Nf6 {[%clk 0:02:53.5]} 13. Nbd2 {[%clk 0:02:47.2]} 13... O-O {[%clk 0:02:50.2]}
14. Re1 {[%clk 0:02:48.1]} 14... Qf5 {[%clk 0:02:37.5]} 15. Qxf5 {[%clk
0:02:30.5]} 15... gxf5 {[%clk 0:02:39.4]} 16. Nb3 {[%clk 0:02:27.2]} 16... Ne4
{[%clk 0:02:38.4]} 17. Bf4 {[%clk 0:02:19.4]} 17... b5 {[%clk 0:02:09.6]} 18.
Rec1 {[%clk 0:01:55.5]} 18... Rfd8 {[%clk 0:01:32.5]} 19. h3 {[%clk 0:01:49.7]}
19... e6 {[%clk 0:01:21.7]} 20. Ne1 {[%clk 0:01:20.5]} 20... b4 {[%clk
0:01:13.6]} 21. Nd3 {[%clk 0:01:06.4]} 21... bxc3 {[%clk 0:01:13.1]} 22. bxc3
{[%clk 0:01:08.3]} 22... Nxc3 {[%clk 0:00:21.5]} 23. Rxc3 {[%clk 0:01:10.2]}
23... Nxd4 {[%clk 0:00:23.1]} 24. Nxd4 {[%clk 0:01:11.2]} 24... Bxd4 {[%clk
0:00:25]} 25. Be5 {[%clk 0:00:55.7]} 25... Bxc3 {[%clk 0:00:24.9]} 26. Bxc3
{[%clk 0:00:57.6]} 26... Rdc8 {[%clk 0:00:21.6]} 27. Bf6 {[%clk 0:00:52.7]}
27... h6 {[%clk 0:00:17]} 28. Ne5 {[%clk 0:00:50.1]} 28... Rab8 {[%clk
0:00:14.2]} 29. Ra3 {[%clk 0:00:50.8]} 29... f4 {[%clk 0:00:10.9]} 30. g3 {[%clk
0:00:51.9]} 30... d4 {[%clk 0:00:07.2]} 31. Rf3 {[%clk 0:00:50.7]} 31... Rc1+
{[%clk 0:00:02.8]} 32. Kg2 {[%clk 0:00:51.7]} 32... fxg3 {[%clk 0:00:03.6]} 33.
Rxg3+ {[%clk 0:00:52.3]} 33... Kf8 {[%clk 0:00:04.4]} 34. Nd7+ {[%clk 0:00:45]}
1-0

[Event "*** Titled Tuesday Blitz AM"]
[Site "Chess.com"]
[Date "2020.01.07"]
[Round "6"]
[White "allvim"]
[Black "Angry_Serb"]
[Result "0-1"]
[WhiteElo "2336"]
[BlackElo "2629"]
[TimeControl "180+2"]
[EndTime "10:18:17 PST"]
[Termination "Angry_Serb won by resignation"]

1. e4 {[%clk 0:03:01.9]} 1... e5 {[%clk 0:03:00.5]} 2. Nf3 {[%clk 0:02:55.8]}
2... d6 {[%clk 0:02:59.6]} 3. Bc4 {[%clk 0:02:55.9]} 3... Be7 {[%clk 0:03:00.4]}
4. d4 {[%clk 0:02:57]} 4... exd4 {[%clk 0:03:02.3]} 5. Nxd4 {[%clk 0:02:58.3]}
5... Nf6 {[%clk 0:03:03.9]} 6. Nc3 {[%clk 0:02:59.3]} 6... O-O {[%clk
0:03:05.5]} 7. O-O {[%clk 0:03:00.2]} 7... c6 {[%clk 0:03:06.2]} 8. a4 {[%clk
0:03:00.7]} 8... Re8 {[%clk 0:03:03.9]} 9. h3 {[%clk 0:02:31]} 9... a5 {[%clk
0:03:04.7]} 10. Re1 {[%clk 0:02:30.1]} 10... Bf8 {[%clk 0:03:00.3]} 11. Bg5
{[%clk 0:02:30.7]} 11... Nbd7 {[%clk 0:03:01.8]} 12. Nf5 {[%clk 0:02:30.3]}
12... Ne5 {[%clk 0:03:00]} 13. Bb3 {[%clk 0:02:30.9]} 13... Bxf5 {[%clk
0:02:59.1]} 14. exf5 {[%clk 0:02:31.7]} 14... d5 {[%clk 0:03:00.8]} 15. Ne2
{[%clk 0:02:22.8]} 15... h6 {[%clk 0:02:59.6]} 16. Bh4 {[%clk 0:02:22.7]} 16...
Be7 {[%clk 0:02:34.7]} 17. Ng3 {[%clk 0:02:18.3]} 17... Qd6 {[%clk 0:02:16.4]}
18. Bxf6 {[%clk 0:02:14.1]} 18... Bxf6 {[%clk 0:02:18.3]} 19. Ne4 {[%clk
0:02:16]} 19... Qd8 {[%clk 0:02:15.3]} 20. Nxf6+ {[%clk 0:02:04.8]} 20... Qxf6
{[%clk 0:02:17.2]} 21. Qh5 {[%clk 0:01:57.4]} 21... Nd7 {[%clk 0:02:12.2]} 22.
c3 {[%clk 0:01:55.1]} 22... Re5 {[%clk 0:02:05.6]} 23. Rxe5 {[%clk 0:01:54.9]}
23... Qxe5 {[%clk 0:02:07.5]} 24. Rd1 {[%clk 0:01:41.6]} 24... Re8 {[%clk
0:01:58.2]} 25. Qf3 {[%clk 0:01:37.2]} 25... Nc5 {[%clk 0:01:54.9]} 26. Bc2
{[%clk 0:01:28.1]} 26... Qe2 {[%clk 0:01:54.6]} 27. Qxe2 {[%clk 0:01:24.5]}
27... Rxe2 {[%clk 0:01:56.5]} 28. Rc1 {[%clk 0:01:26.1]} 28... Ne4 {[%clk
0:01:53.9]} 29. Bxe4 {[%clk 0:01:19.3]} 29... Rxe4 {[%clk 0:01:44.5]} 30. b3
{[%clk 0:01:16.5]} 30... Kf8 {[%clk 0:01:34.4]} 31. Kf1 {[%clk 0:01:17.2]} 31...
Ke7 {[%clk 0:01:32.6]} 32. Re1 {[%clk 0:00:48.9]} 32... Rxe1+ {[%clk 0:01:23.7]}
33. Kxe1 {[%clk 0:00:50.8]} 33... Kf6 {[%clk 0:01:24.7]} 34. g4 {[%clk
0:00:50.6]} 34... Kg5 {[%clk 0:01:20.2]} 35. b4 {[%clk 0:00:38.2]} 35... axb4
{[%clk 0:01:17.5]} 36. cxb4 {[%clk 0:00:39.2]} 36... Kh4 {[%clk 0:01:16.7]} 37.
Ke2 {[%clk 0:00:35.9]} 37... Kxh3 {[%clk 0:01:17.4]} 38. Kf3 {[%clk 0:00:33.7]}
38... d4 {[%clk 0:01:08.4]} 39. Kf4 {[%clk 0:00:34.7]} 39... d3 {[%clk
0:01:09.6]} 40. Ke3 {[%clk 0:00:33.3]} 40... Kxg4 {[%clk 0:01:10.5]} 41. Kxd3
{[%clk 0:00:33.8]} 41... Kxf5 {[%clk 0:01:08.9]} 42. Ke3 {[%clk 0:00:32.1]}
42... h5 {[%clk 0:01:09.1]} 43. Kf3 {[%clk 0:00:29.8]} 43... h4 {[%clk
0:01:08.9]} 0-1

[Event "*** Titled Tuesday Blitz AM"]
[Site "Chess.com"]
[Date "2020.01.07"]
[Round "6"]
[White "MikeSailer"]
[Black "VeraNebolsina"]
[Result "1/2-1/2"]
[WhiteElo "2112"]
[BlackElo "2320"]
[TimeControl "180+2"]
[EndTime "10:18:19 PST"]
[Termination "Game drawn by repetition"]

1. b4 {[%clk 0:03:01.9]} 1... e5 {[%clk 0:02:56.3]} 2. Bb2 {[%clk 0:02:58.7]}
2... d6 {[%clk 0:02:57.4]} 3. e3 {[%clk 0:02:58.3]} 3... Nd7 {[%clk 0:02:58.5]}
4. Nf3 {[%clk 0:02:59.6]} 4... g6 {[%clk 0:02:59.4]} 5. Be2 {[%clk 0:03:01.1]}
5... Bg7 {[%clk 0:03:00.6]} 6. O-O {[%clk 0:03:01.8]} 6... Ngf6 {[%clk 0:02:57]}
7. c4 {[%clk 0:03:02.2]} 7... O-O {[%clk 0:02:57.8]} 8. d4 {[%clk 0:03:02.4]}
8... e4 {[%clk 0:02:57.6]} 9. Nfd2 {[%clk 0:03:01.6]} 9... Re8 {[%clk
0:02:58.9]} 10. Nc3 {[%clk 0:03:01.7]} 10... Nf8 {[%clk 0:03:00]} 11. a4 {[%clk
0:02:57.5]} 11... h5 {[%clk 0:03:00.2]} 12. a5 {[%clk 0:02:57.9]} 12... Bf5
{[%clk 0:03:00.2]} 13. d5 {[%clk 0:02:42.8]} 13... N8h7 {[%clk 0:02:53.2]} 14.
Nb3 {[%clk 0:02:41.3]} 14... Ng5 {[%clk 0:02:45.5]} 15. a6 {[%clk 0:02:30.5]}
15... b6 {[%clk 0:02:45.9]} 16. Nb5 {[%clk 0:02:31.5]} 16... Ng4 {[%clk
0:02:37.9]} 17. Bxg7 {[%clk 0:02:30.1]} 17... Kxg7 {[%clk 0:02:39]} 18. N5d4
{[%clk 0:02:19.4]} 18... Ne5 {[%clk 0:02:40]} 19. Nxf5+ {[%clk 0:02:15.3]} 19...
gxf5 {[%clk 0:02:41.2]} 20. Nd4 {[%clk 0:02:10.5]} 20... Qf6 {[%clk 0:02:42.2]}
21. c5 {[%clk 0:01:33.2]} 21... dxc5 {[%clk 0:02:34.1]} 22. bxc5 {[%clk
0:01:33.5]} 22... Rad8 {[%clk 0:02:35.6]} 23. d6 {[%clk 0:01:23.8]} 23... bxc5
{[%clk 0:02:28.4]} 24. dxc7 {[%clk 0:01:10.4]} 24... cxd4 {[%clk 0:02:29.6]} 25.
cxd8=Q {[%clk 0:01:10.6]} 25... Rxd8 {[%clk 0:02:30.3]} 26. exd4 {[%clk
0:01:05.1]} 26... Rxd4 {[%clk 0:02:30.5]} 27. Qb3 {[%clk 0:00:54.5]} 27... Rd2
{[%clk 0:01:52.5]} 28. Qe3 {[%clk 0:00:47]} 28... Rxe2 {[%clk 0:01:37.7]} 29.
Qxe2 {[%clk 0:00:47.5]} 29... Ngf3+ {[%clk 0:01:38.7]} 30. Kh1 {[%clk
0:00:40.2]} 30... Nxh2 {[%clk 0:01:24]} 31. Qxh5 {[%clk 0:00:32.6]} 31... Nhg4
{[%clk 0:01:20.1]} 32. f3 {[%clk 0:00:26.6]} 32... exf3 {[%clk 0:01:14.3]} 33.
gxf3 {[%clk 0:00:26.9]} 33... Nxf3 {[%clk 0:01:15.3]} 34. Rxf3 {[%clk
0:00:23.7]} 34... Qxa1+ {[%clk 0:01:15.5]} 35. Kg2 {[%clk 0:00:21.6]} 35... Qb2+
{[%clk 0:01:13.3]} 36. Kg3 {[%clk 0:00:21.2]} 36... Qe5+ {[%clk 0:01:14.1]} 37.
Kg2 {[%clk 0:00:17.9]} 37... Qe2+ {[%clk 0:01:13.2]} 38. Kg3 {[%clk 0:00:18.8]}
38... Qe1+ {[%clk 0:01:13.5]} 39. Kg2 {[%clk 0:00:15.6]} 39... Qe2+ {[%clk
0:01:09.8]} 40. Kg3 {[%clk 0:00:16.3]} 40... Qe1+ {[%clk 0:01:08.4]} 41. Kg2
{[%clk 0:00:17.1]} 41... Qe2+ {[%clk 0:01:08.9]} 1/2-1/2